{"text_format":"1","workbook":"xlsx","n_sheets":2,"sheets":["Presupuesto Proyecto Aa","Full1"],"not_rendered":{"charts":0,"images":1,"macros":1,"external_links":0,"defined_names":6,"comments":1,"pivot_tables":0},"unopened":[],"bounds":{"document_bytes":16777216,"sheet_cells":100000,"rows_first":2000,"rows_last":500,"rows_between":2000,"halvings":0,"cell_chars":16384,"cell_head_chars":4096},"cells_cut":0,"cells_raw":0,"read":"whole","date_system":"1900"}

{"sheet":"Presupuesto Proyecto Aa","index":0,"n_rows":109,"n_cols":6,"rows_kept":109,"cut":false,"hidden":false,"merged":[[107,0,107,3],[108,0,108,3],[2,2,3,5],[100,0,100,3],[101,0,101,3],[102,0,102,3],[103,0,103,3],[104,0,104,3],[95,0,95,3],[96,0,96,3],[97,0,97,3],[98,0,98,3],[99,0,99,3],[2,0,3,1],[5,1,5,5],[105,0,105,3],[1,2,1,5],[4,2,4,5],[6,2,6,5],[0,3,0,5],[106,0,106,3],[92,0,92,3],[93,0,93,3],[91,2,91,3],[91,0,91,1]]}
[null,null,null,"Documento básico 3"]
[null,null,"Ámbito temático \"A\" FORTALECIMIENTO: Creación y consolidación"]
["CONVOCATORIA 2024 DEL PROGRAMA DE SUBVENCIONES DEL AYUNTAMIENTO DE BARCELONA PARA EL FORTALECIMIENTO DE LA ECONOMÍA SOCIAL Y SOLIDARIA Y PARA LA INTERCOOPERACIÓN EN LA ESTRATEGIA #ESSBCN2030 - ENFORTIM L’ESS 2024\n",null,"Modalidad \"Aa\": Creación de nuevas cooperativas y transformación, de otras formas jurídicas preexistentes, en cooperativas"]
[]
[null,null,"Atención: Rellenar las celdas en blanco y añadir las filas necesarias "]
[null,"Antes de rellenar, consultar anotaciones a pie de página "]
[]
["DATOS BÁSICOS"]
["Nombre de la persona jurídica/física",null,null,null,null,"  "]
["NIF de la persona física/ jurídica"]
["Título del proyecto subvencionable"]
["Importe total del proyecto subvencionable"]
["Importe imputable a la subvención municipal"]
["Importe de la aportación / Cofinanciación de la organización",{"$f":"+B12-B13","v":0}]
["% del importe solicitado respecto del total del proyecto subvencionable (*)",{"$f":"B13/B12","v":{"$error":"#DIV/0!"}},"* La cuantía de la subvención otorgada no superará el 80% del gasto total del proyecto a subvencionar. "]
[]
["PREVISIÓN DE GASTOS DEL PROYECTO SUBVENCIONABLE"]
["Partidas","Importe imputable a la subvención municipal","Importe de la aportación / Cofinanciación de la organización","Importe total del proyecto"]
["D1. Nóminas y seguridad social (régimen general o régimen de autónomos) del personal propio vinculado al proyecto subvencionable ",{"$f":"SUM(B20:B23)","v":0},{"$f":"SUM(C20:C23)","v":0},{"$f":"DespesesProjecte[[#This Row],[Importe imputable a la subvención municipal]]+DespesesProjecte[[#This Row],[Importe de la aportación / Cofinanciación de la organización]]","v":0}]
[null,null,null,{"$f":"DespesesProjecte[[#This Row],[Importe imputable a la subvención municipal]]+DespesesProjecte[[#This Row],[Importe de la aportación / Cofinanciación de la organización]]","v":0}]
[null,null,null,{"$f":"SUM(DespesesProjecte[[#This Row],[Importe imputable a la subvención municipal]],DespesesProjecte[[#This Row],[Importe de la aportación / Cofinanciación de la organización]])","v":0}]
[null,null,null,{"$f":"SUM(DespesesProjecte[[#This Row],[Importe imputable a la subvención municipal]],DespesesProjecte[[#This Row],[Importe de la aportación / Cofinanciación de la organización]])","v":0}]
[null,null,null,{"$f":"SUM(DespesesProjecte[[#This Row],[Importe imputable a la subvención municipal]],DespesesProjecte[[#This Row],[Importe de la aportación / Cofinanciación de la organización]])","v":0}]
["D2. Rendimentos anuales netos del empresario/a individual (ver 13.2 bases) ",{"$f":"SUM(B25:B28)","v":0},{"$f":"SUM(C25:C28)","v":0},{"$f":"SUM(DespesesProjecte[[#This Row],[Importe imputable a la subvención municipal]],DespesesProjecte[[#This Row],[Importe de la aportación / Cofinanciación de la organización]])","v":0}]
[null,null,null,{"$f":"SUM(DespesesProjecte[[#This Row],[Importe imputable a la subvención municipal]],DespesesProjecte[[#This Row],[Importe de la aportación / Cofinanciación de la organización]])","v":0}]
[null,null,null,{"$f":"SUM(DespesesProjecte[[#This Row],[Importe imputable a la subvención municipal]],DespesesProjecte[[#This Row],[Importe de la aportación / Cofinanciación de la organización]])","v":0}]
[null,null,null,{"$f":"SUM(DespesesProjecte[[#This Row],[Importe imputable a la subvención municipal]],DespesesProjecte[[#This Row],[Importe de la aportación / Cofinanciación de la organización]])","v":0}]
[null,null,null,{"$f":"SUM(DespesesProjecte[[#This Row],[Importe imputable a la subvención municipal]],DespesesProjecte[[#This Row],[Importe de la aportación / Cofinanciación de la organización]])","v":0}]
["TOTAL DE GASTOS DEL PERSONAL (D1+D2 máximo 40% del importe imputable a la subvención municipal)",{"$f":"B19+B24","v":0},{"$f":"C19+C24","v":0},{"$f":"D19+D24","v":0}]
["D3. Trabajos realizados por profesionales y empresas externas directamente vinculadas al proyecto, gastos de licencias y tareas relacionadas con el  inicio y desarrollo de la actividad",{"$f":"SUM(B31:B34)","v":0},{"$f":"SUM(C31:C34)","v":0},{"$f":"SUM(DespesesProjecte[[#This Row],[Importe imputable a la subvención municipal]],DespesesProjecte[[#This Row],[Importe de la aportación / Cofinanciación de la organización]])","v":0}]
[null,null,null,{"$f":"SUM(DespesesProjecte[[#This Row],[Importe imputable a la subvención municipal]],DespesesProjecte[[#This Row],[Importe de la aportación / Cofinanciación de la organización]])","v":0}]
[null,null,null,{"$f":"SUM(DespesesProjecte[[#This Row],[Importe imputable a la subvención municipal]],DespesesProjecte[[#This Row],[Importe de la aportación / Cofinanciación de la organización]])","v":0}]
[null,null,null,{"$f":"SUM(DespesesProjecte[[#This Row],[Importe imputable a la subvención municipal]],DespesesProjecte[[#This Row],[Importe de la aportación / Cofinanciación de la organización]])","v":0}]
[null,null,null,{"$f":"SUM(DespesesProjecte[[#This Row],[Importe imputable a la subvención municipal]],DespesesProjecte[[#This Row],[Importe de la aportación / Cofinanciación de la organización]])","v":0}]
["TOTAL DE OTROS GASTOS DIRECTOS",{"$f":"B30","v":0},{"$f":"C30","v":0},{"$f":"D30","v":0}]
["TOTAL GASTOS DIRECTOS (aquellas que se identifican directamente con el proyecto subvencionable)",{"$f":"SUM(B29,B35)","v":0},{"$f":"SUM(C29,C35)","v":0},{"$f":"D29+D35","v":0}]
["I1. Personal de apoyo al proyecto (nóminas y seguridad social)",{"$f":"SUM(B38:B41)","v":0},{"$f":"SUM(C38:C41)","v":0},{"$f":"SUM(DespesesProjecte[[#This Row],[Importe imputable a la subvención municipal]],DespesesProjecte[[#This Row],[Importe de la aportación / Cofinanciación de la organización]])","v":0}]
[null,null,null,{"$f":"SUM(DespesesProjecte[[#This Row],[Importe imputable a la subvención municipal]],DespesesProjecte[[#This Row],[Importe de la aportación / Cofinanciación de la organización]])","v":0}]
[null,null,null,{"$f":"SUM(DespesesProjecte[[#This Row],[Importe imputable a la subvención municipal]],DespesesProjecte[[#This Row],[Importe de la aportación / Cofinanciación de la organización]])","v":0}]
[null,null,null,{"$f":"SUM(DespesesProjecte[[#This Row],[Importe imputable a la subvención municipal]],DespesesProjecte[[#This Row],[Importe de la aportación / Cofinanciación de la organización]])","v":0}]
[null,null,null,{"$f":"SUM(DespesesProjecte[[#This Row],[Importe imputable a la subvención municipal]],DespesesProjecte[[#This Row],[Importe de la aportación / Cofinanciación de la organización]])","v":0}]
["I2. Seguros",{"$f":"SUM(B43:B46)","v":0},{"$f":"SUM(C43:C46)","v":0},{"$f":"SUM(DespesesProjecte[[#This Row],[Importe imputable a la subvención municipal]],DespesesProjecte[[#This Row],[Importe de la aportación / Cofinanciación de la organización]])","v":0}]
[null,null,null,{"$f":"SUM(DespesesProjecte[[#This Row],[Importe imputable a la subvención municipal]],DespesesProjecte[[#This Row],[Importe de la aportación / Cofinanciación de la organización]])","v":0}]
[null,null,null,{"$f":"SUM(DespesesProjecte[[#This Row],[Importe imputable a la subvención municipal]],DespesesProjecte[[#This Row],[Importe de la aportación / Cofinanciación de la organización]])","v":0}]
[null,null,null,{"$f":"SUM(DespesesProjecte[[#This Row],[Importe imputable a la subvención municipal]],DespesesProjecte[[#This Row],[Importe de la aportación / Cofinanciación de la organización]])","v":0}]
[null,null,null,{"$f":"SUM(DespesesProjecte[[#This Row],[Importe imputable a la subvención municipal]],DespesesProjecte[[#This Row],[Importe de la aportación / Cofinanciación de la organización]])","v":0}]
["I3. Amortización",{"$f":"SUM(B48:B51)","v":0},{"$f":"SUM(C48:C51)","v":0},{"$f":"SUM(DespesesProjecte[[#This Row],[Importe imputable a la subvención municipal]],DespesesProjecte[[#This Row],[Importe de la aportación / Cofinanciación de la organización]])","v":0}]
[null,null,null,{"$f":"SUM(DespesesProjecte[[#This Row],[Importe imputable a la subvención municipal]],DespesesProjecte[[#This Row],[Importe de la aportación / Cofinanciación de la organización]])","v":0}]
[null,null,null,{"$f":"SUM(DespesesProjecte[[#This Row],[Importe imputable a la subvención municipal]],DespesesProjecte[[#This Row],[Importe de la aportación / Cofinanciación de la organización]])","v":0}]
[null,null,null,{"$f":"SUM(DespesesProjecte[[#This Row],[Importe imputable a la subvención municipal]],DespesesProjecte[[#This Row],[Importe de la aportación / Cofinanciación de la organización]])","v":0}]
[null,null,null,{"$f":"SUM(DespesesProjecte[[#This Row],[Importe imputable a la subvención municipal]],DespesesProjecte[[#This Row],[Importe de la aportación / Cofinanciación de la organización]])","v":0}]
["I4. Alquiler de bienes inmuebles",{"$f":"SUM(B53:B56)","v":0},{"$f":"SUM(C53:C56)","v":0},{"$f":"SUM(DespesesProjecte[[#This Row],[Importe imputable a la subvención municipal]],DespesesProjecte[[#This Row],[Importe de la aportación / Cofinanciación de la organización]])","v":0}]
[null,null,null,{"$f":"SUM(DespesesProjecte[[#This Row],[Importe imputable a la subvención municipal]],DespesesProjecte[[#This Row],[Importe de la aportación / Cofinanciación de la organización]])","v":0}]
[null,null,null,{"$f":"SUM(DespesesProjecte[[#This Row],[Importe imputable a la subvención municipal]],DespesesProjecte[[#This Row],[Importe de la aportación / Cofinanciación de la organización]])","v":0}]
[null,null,null,{"$f":"SUM(DespesesProjecte[[#This Row],[Importe imputable a la subvención municipal]],DespesesProjecte[[#This Row],[Importe de la aportación / Cofinanciación de la organización]])","v":0}]
[null,null,null,{"$f":"SUM(DespesesProjecte[[#This Row],[Importe imputable a la subvención municipal]],DespesesProjecte[[#This Row],[Importe de la aportación / Cofinanciación de la organización]])","v":0}]
["I5. Adquisición de materiales y bienes consumibles parcialmente imputables al proyecto",{"$f":"SUM(B58:B61)","v":0},{"$f":"SUM(C58:C61)","v":0},{"$f":"SUM(DespesesProjecte[[#This Row],[Importe imputable a la subvención municipal]],DespesesProjecte[[#This Row],[Importe de la aportación / Cofinanciación de la organización]])","v":0}]
[null,null,null,{"$f":"SUM(DespesesProjecte[[#This Row],[Importe imputable a la subvención municipal]],DespesesProjecte[[#This Row],[Importe de la aportación / Cofinanciación de la organización]])","v":0}]
[null,null,null,{"$f":"SUM(DespesesProjecte[[#This Row],[Importe imputable a la subvención municipal]],DespesesProjecte[[#This Row],[Importe de la aportación / Cofinanciación de la organización]])","v":0}]
[null,null,null,{"$f":"SUM(DespesesProjecte[[#This Row],[Importe imputable a la subvención municipal]],DespesesProjecte[[#This Row],[Importe de la aportación / Cofinanciación de la organización]])","v":0}]
[null,null,null,{"$f":"SUM(DespesesProjecte[[#This Row],[Importe imputable a la subvención municipal]],DespesesProjecte[[#This Row],[Importe de la aportación / Cofinanciación de la organización]])","v":0}]
["I6. Mantenimiento de edificios y / o instalaciones",{"$f":"SUM(B63:B66)","v":0},{"$f":"SUM(C63:C66)","v":0},{"$f":"SUM(DespesesProjecte[[#This Row],[Importe imputable a la subvención municipal]],DespesesProjecte[[#This Row],[Importe de la aportación / Cofinanciación de la organización]])","v":0}]
[null,null,null,{"$f":"SUM(DespesesProjecte[[#This Row],[Importe imputable a la subvención municipal]],DespesesProjecte[[#This Row],[Importe de la aportación / Cofinanciación de la organización]])","v":0}]
[null,null,null,{"$f":"SUM(DespesesProjecte[[#This Row],[Importe imputable a la subvención municipal]],DespesesProjecte[[#This Row],[Importe de la aportación / Cofinanciación de la organización]])","v":0}]
[null,null,null,{"$f":"SUM(DespesesProjecte[[#This Row],[Importe imputable a la subvención municipal]],DespesesProjecte[[#This Row],[Importe de la aportación / Cofinanciación de la organización]])","v":0}]
[null,null,null,{"$f":"SUM(DespesesProjecte[[#This Row],[Importe imputable a la subvención municipal]],DespesesProjecte[[#This Row],[Importe de la aportación / Cofinanciación de la organización]])","v":0}]
["I7. Comunicaciones (teléfono, correos, conexión a internet)",{"$f":"SUM(B68:B71)","v":0},{"$f":"SUM(C68:C71)","v":0},{"$f":"SUM(DespesesProjecte[[#This Row],[Importe imputable a la subvención municipal]],DespesesProjecte[[#This Row],[Importe de la aportación / Cofinanciación de la organización]])","v":0}]
[null,null,null,{"$f":"SUM(DespesesProjecte[[#This Row],[Importe imputable a la subvención municipal]],DespesesProjecte[[#This Row],[Importe de la aportación / Cofinanciación de la organización]])","v":0}]
[null,null,null,{"$f":"SUM(DespesesProjecte[[#This Row],[Importe imputable a la subvención municipal]],DespesesProjecte[[#This Row],[Importe de la aportación / Cofinanciación de la organización]])","v":0}]
[null,null,null,{"$f":"SUM(DespesesProjecte[[#This Row],[Importe imputable a la subvención municipal]],DespesesProjecte[[#This Row],[Importe de la aportación / Cofinanciación de la organización]])","v":0}]
[null,null,null,{"$f":"SUM(DespesesProjecte[[#This Row],[Importe imputable a la subvención municipal]],DespesesProjecte[[#This Row],[Importe de la aportación / Cofinanciación de la organización]])","v":0}]
["I8. Gastos financieros",{"$f":"SUM(B73:B76)","v":0},{"$f":"SUM(C73:C76)","v":0},{"$f":"SUM(DespesesProjecte[[#This Row],[Importe imputable a la subvención municipal]],DespesesProjecte[[#This Row],[Importe de la aportación / Cofinanciación de la organización]])","v":0}]
[null,null,null,{"$f":"SUM(DespesesProjecte[[#This Row],[Importe imputable a la subvención municipal]],DespesesProjecte[[#This Row],[Importe de la aportación / Cofinanciación de la organización]])","v":0}]
[null,null,null,{"$f":"SUM(DespesesProjecte[[#This Row],[Importe imputable a la subvención municipal]],DespesesProjecte[[#This Row],[Importe de la aportación / Cofinanciación de la organización]])","v":0}]
[null,null,null,{"$f":"SUM(DespesesProjecte[[#This Row],[Importe imputable a la subvención municipal]],DespesesProjecte[[#This Row],[Importe de la aportación / Cofinanciación de la organización]])","v":0}]
[null,null,null,{"$f":"SUM(DespesesProjecte[[#This Row],[Importe imputable a la subvención municipal]],DespesesProjecte[[#This Row],[Importe de la aportación / Cofinanciación de la organización]])","v":0}]
["I9. Suministros",{"$f":"SUM(B78:B81)","v":0},{"$f":"SUM(C78:C81)","v":0},{"$f":"SUM(DespesesProjecte[[#This Row],[Importe imputable a la subvención municipal]],DespesesProjecte[[#This Row],[Importe de la aportación / Cofinanciación de la organización]])","v":0}]
[null,null,null,{"$f":"SUM(DespesesProjecte[[#This Row],[Importe imputable a la subvención municipal]],DespesesProjecte[[#This Row],[Importe de la aportación / Cofinanciación de la organización]])","v":0}]
[null,null,null,{"$f":"SUM(DespesesProjecte[[#This Row],[Importe imputable a la subvención municipal]],DespesesProjecte[[#This Row],[Importe de la aportación / Cofinanciación de la organización]])","v":0}]
[null,null,null,{"$f":"SUM(DespesesProjecte[[#This Row],[Importe imputable a la subvención municipal]],DespesesProjecte[[#This Row],[Importe de la aportación / Cofinanciación de la organización]])","v":0}]
[null,null,null,{"$f":"SUM(DespesesProjecte[[#This Row],[Importe imputable a la subvención municipal]],DespesesProjecte[[#This Row],[Importe de la aportación / Cofinanciación de la organización]])","v":0}]
["I10. Trabajo realizado por otras empresas, parcialmente imputables al proyecto (limpieza, seguridad...)",{"$f":"SUM(B83:B86)","v":0},{"$f":"SUM(C83:C86)","v":0},{"$f":"SUM(DespesesProjecte[[#This Row],[Importe imputable a la subvención municipal]],DespesesProjecte[[#This Row],[Importe de la aportación / Cofinanciación de la organización]])","v":0}]
[null,null,null,{"$f":"SUM(DespesesProjecte[[#This Row],[Importe imputable a la subvención municipal]],DespesesProjecte[[#This Row],[Importe de la aportación / Cofinanciación de la organización]])","v":0}]
[null,null,null,{"$f":"SUM(DespesesProjecte[[#This Row],[Importe imputable a la subvención municipal]],DespesesProjecte[[#This Row],[Importe de la aportación / Cofinanciación de la organización]])","v":0}]
[null,null,null,{"$f":"SUM(DespesesProjecte[[#This Row],[Importe imputable a la subvención municipal]],DespesesProjecte[[#This Row],[Importe de la aportación / Cofinanciación de la organización]])","v":0}]
[null,null,null,{"$f":"SUM(DespesesProjecte[[#This Row],[Importe imputable a la subvención municipal]],DespesesProjecte[[#This Row],[Importe de la aportación / Cofinanciación de la organización]])","v":0}]
["TOTAL GASTOS INDIRECTOS (se podrán asignar al proyecto subvencionable haciendo servir un porcentaje de asignación) - Máximo 10% del importe imputable a la subvención municipal",{"$f":"SUM(B37,B42,B47,B52,B57,B62,B67,B72,B77,B82)","v":0},{"$f":"SUM(C37,C42,C47,C52,C57,C62,C67,C72,C77,C82)","v":0},{"$f":"D37+D42+D47+D52+D57+D62+D67+D72+D77+D82","v":0}]
["TOTAL DE GASTOS PREVISTOS",{"$f":"SUM(B36+B87)","v":0},{"$f":"SUM(C36+C87)","v":0},{"$f":"SUM(D36+D87)","v":0}]
[]
["Barcelona, "]
[]
["Sello de la organización",null,"Firma de la persona representante legal de la organización"]
["\nAtención: En caso de personas jurídicas no firme este documento ahora.\nMás adelante firmaréis digitalmente este documento"]
["Atención: En caso de registro físico para las personas físicas\nAñada la fecha y la firma del representante legal de la organización aquí para que este documento tenga validez legal"]
[]
["Modalidad Aa: Creación de nuevas cooperativas y transformación, de otras formas jurídicas preexistentes, en cooperativas."]
["Se establece como obligación de la subvención la constitución de la cooperativa, estar en disposición del NIF provisional y haber presentado la solicitud de inscripción en el registro corresponendiente antes de la finalización del proyecto subvencionable. Se reconocerá como válida la solicitud, en caso que el registro no haya respondido la petición durante el periodo de ejecución. Igualment en los proyectos de transformación para convertirse en cooperativa, será necesario acreditar, como mínimo, la solicitud de inscripción presentada en el registro correspondiente en el momento de la justificación"]
[" 1. La cuantía de la subvención otorgada no superará el 80% del gasto total del proyecto a subvencionar."]
[" 2. El importe máximo de subvención para la modalidad \"Aa\"  es 8.000 €."]
[" 3. En caso de que la solicitud presentada sobrepase el importe máximo, se considerará como importe solicitado el máximo de lo establecido en la convocatoria."]
[" 4. Se limita con un máximo del 40% del importe de la subvención para gastos de personal propio que participa de forma directa y debidamente al proyecto."]
[" 5. Sólo con carácter excepcional, los/las empresarios/as individuales que no tengan personas trabajadoras en plantilla podrán acreditar sus trabajos mediante una declaración responsable acompañada de las declaraciones IRPF (modelo 130) del ejercicio corriente. El precio/hora imputado al proyecto subvencionado no podrá superar la cantidad resultante  de dividir los rendimientos anuales netos del empresario / a individual por 1800."]
[" 6. En ningún caso de consideran subvencionables los gastos:\n> Los impuestos indirectos cuando sean susceptibles de recuperación y compensación.\n> Los gastos de inversión, incluidas las adquisiciones de bienes inmuebles.\n> Los gastos realizados con fecha anterior al inicio del proyecto y fecha posterior a la finalización del proyecto.\n> Otros gastos que se indiquen en la convocatoria."]
[" 7. Son imputables en esta modalidad los gastos indirectos, detallados en el apartado 13.3. de les bases reguladoras; con un máximo del 10% del importe de la subvención."]
[" 8. La retribución de las personas contratadas en el marco del proyecto a subvencionar no puede ser menor al Salario Mínimo Interprofesional(SMI), ni al estipulado en el correspondiente convenio o marco normativo de referencia (punto 7 de las bases 2024: requisitos de los proyectos)."]
[" 9. Los materiales producidos de difusión, estudios, informes o materiales didácticos utilizados, etc., en el caso de tratarse de gasto elegible de la subvención, deberán tener licencia Creative Commons Compartir Igual (share alike), y esta no podrá tener la condición Sin Obras Derivadas (no derivate works)."]
[" 10. Los proyectos subvencionados han de fomentar actividades de interés público o social, estos deberán ser gratuitos para las personas participantes o en ningún caso el precio ha de suponer un obstáculo para su participación, buscando otras formas de acceso para personas con dificultades económicas. En el caso que exista algún tipo de lucro, tendrá que revertirse en las propias actividades subvencionadas."]
[" 11. El Ayuntamiento de Barcelona y sus entidades municipales en ningún caso subvencionaran el mismo proyecto, ejecutado durante el mismo periodo, por otro procedimiento de concesión que no sea el regulado en las bases reguladoras."]
[" 12. El/la beneficiario/a no podrá alterar en ningún caso el destino de las subvenciones concedidas."]

{"sheet":"Full1","index":1,"n_rows":0,"n_cols":0,"rows_kept":0,"cut":false,"hidden":false,"merged":[]}